bitfinex-derivatives/quotes_SOLF0:USTF0_20250924
["timestamp","ask_amount","ask_price","bid_price","bid_amount"]
[1758725294734,121.02,214.88,214.82,4.1876]
[1758725295135,2.92,214.89,214.82,4.1876]
[1758725295331,121.0,214.88,214.82,4.1876]
[1758725295836,121.0,214.88,214.8,4.1881]
[1758725296437,125.1866,214.88,214.76,7.43]
[1758725296936,4.1872,214.85,214.71,72.6054]
[1758725297332,2.92,214.84,214.71,72.6054]
[1758725297635,2.92,214.84,214.71,7.43]
[1758725298229,2.92,214.83,214.71,7.43]
[1758725298431,2.92,214.83,214.66,7.43]
[1758725298632,2.92,214.82,214.66,7.43]
[1758725299041,120.86,214.81,214.68,65.1851]
[1758725299233,2.92,214.82,214.68,65.1851]
[1758725299537,89.28,214.81,214.71,4.1899]
[1758725299732,2.92,214.82,214.69,65.1814]
[1758725299941,2.92,214.82,214.7,7.43]
[1758725300237,2.92,214.82,214.69,65.1814]
[1758725300238,95.44,214.81,214.73,7.43]
[1758725300634,95.44,214.81,214.76,4.1887]
[1758725301445,2.92,214.88,214.78,65.153]
[1758725301736,41.3,214.88,214.78,65.153]
[1758725301938,120.9,214.87,214.78,65.153]
[1758725302533,120.9,214.87,214.77,7.43]
[1758725303034,2.92,214.89,214.78,65.155]
[1758725303335,110.56,214.88,214.78,65.155]
[1758725303535,110.56,214.88,214.79,4.1881]
[1758725303733,120.86,214.87,214.77,7.43]
[1758725304339,120.86,214.86,214.77,7.43]
[1758725304537,7.1064,214.89,214.77,7.43]
[1758725304833,120.86,214.85,214.77,7.43]
[1758725305242,120.82,214.84,214.77,7.43]
[1758725305835,2.92,214.89,214.77,7.43]
[1758725306035,120.8,214.85,214.77,7.43]
[1758725306239,120.8,214.85,214.81,4.1877]
[1758725306740,120.8,214.85,214.81,12.0977]
[1758725307339,120.8,214.85,214.82,4.1876]
[1758725307536,1.8102539,214.91,214.82,65.1425]
[1758725307731,1.0,214.91,214.87,4.1866]
[1758725307936,121.68,214.91,214.87,4.1866]
[1758725308234,121.68,214.91,214.82,70.40908857]
[1758725308430,121.68,214.91,214.86,4.1868]
[1758725308636,1.0,214.91,214.86,12.0968]
[1758725308837,1.0,214.91,214.86,7.91]
[1758725309040,1.0,214.91,214.87,12.0966]
[1758725309245,1.0,214.91,214.88,7.91]
[1758725309539,1.0,214.91,214.85,65.1331]
[1758725309540,1.0,214.91,214.86,7.91]
[1758725309937,1.0,214.91,214.85,7.91]
[1758725310243,1.0,214.91,214.88,7.91]
[1758725310635,1.0,214.91,214.82,70.40908857]
[1758725310636,1.0,214.91,214.83,7.91]
[1758725311537,1.0,214.91,214.8,9.45468857]
[1758725311838,1.0,214.91,214.8,5.26658857]
[1758725312145,104.46,214.9,214.82,4.1877]
[1758725312337,1.0,214.91,214.81,7.91]
[1758725312539,121.54,214.91,214.81,7.91]
[1758725312738,1.0,214.91,214.86,12.0969]
[1758725312935,121.54,214.91,214.86,12.0969]
[1758725313237,1.0,214.91,214.87,7.91]
[1758725313441,1.0,214.91,214.82,65.1424]
[1758725313645,1.0,214.91,214.81,7.91]
[1758725313943,1.0,214.91,214.82,65.1429]
[1758725314148,1.0,214.91,214.83,7.91]
[1758725314345,1.0,214.91,214.89,7.91]
[1758725315342,1.0,214.91,214.9,7.91]
[1758725322253,1.0,214.91,214.9,11.82682217]
[1758725325356,120.12,215.0,214.9,11.82682217]
[1758725325655,120.12,215.0,214.91,3.91682217]
[1758725325848,120.12,215.0,214.92,3.91682217]
[1758725326048,120.1,215.0,214.9,7.91]
[1758725326252,120.1,215.0,214.92,4.1857]
[1758725326452,2.91,215.01,214.93,3.91651891]
[1758725326753,120.06,215.0,214.9,12.0961]
[1758725326948,120.04,215.0,214.91,3.9192168]
[1758725327149,2.91,215.01,214.92,3.9192168]
[1758725327349,2.91,215.01,214.93,8.1047168]
[1758725327557,2.91,215.01,214.94,3.9192168]
[1758725327756,122.93,215.01,214.95,3.9192168]
[1758725328051,3.91,215.0,214.96,3.9192168]
[1758725328246,3.91,215.0,214.97,3.9192168]
[1758725328444,3.91,215.0,214.92,4.1856]
[1758725328445,3.91,215.0,214.98,3.9192168]
[1758725328657,3.91,215.0,214.9,7.91]
[1758725328849,3.91,215.0,214.91,3.92093208]
[1758725329054,3.91,215.0,214.92,3.92093208]
[1758725329253,3.91,215.0,214.93,3.92093208]
[1758725329458,3.91,215.0,214.94,3.92093208]
[1758725329757,3.91,214.98,214.95,3.92093208]
[1758725329955,3.91,214.98,214.96,3.92093208]
[1758725330157,3.91,214.98,214.97,3.92093208]
[1758725330658,6.04406311,214.98,214.97,3.92093208]
[1758725331456,3.91,214.98,214.97,3.92093208]
[1758725331752,2.13406311,214.99,214.97,3.92093208]
[1758725331956,119.94,214.98,214.91,2.13406311]
[1758725332159,119.94,214.98,214.9,7.91]
[1758725332160,119.94,214.98,214.92,3.93710972]
[1758725332364,119.94,214.98,214.93,11.84710972]
[1758725332559,3.91,214.97,214.94,3.93710972]
[1758725332860,3.91,214.97,214.95,3.93710972]
[1758725333154,3.91,214.97,214.96,3.93710972]
[1758725333859,119.78,214.98,214.96,3.93710972]
[1758725334059,119.78,214.98,214.79,3.78243608]
[1758725334060,125.81406311,214.98,214.97,3.93710972]
[1758725334655,125.81406311,214.98,214.88,7.75]
[1758725334961,2.13406311,214.96,214.88,7.75]
[1758725335356,2.13406311,214.94,214.88,7.75]
[1758725336859,10.21936311,214.95,214.88,7.75]
[1758725337159,2.13406311,214.93,214.82,7.75]
[1758725337550,2.13406311,214.93,214.84,2.13406311]
[1758725338464,2.13406311,214.93,214.85,7.75]
[1758725338761,119.58,214.93,214.85,7.75]
[1758725339163,3.9,214.95,214.85,7.75]
[1758725339360,80.38,214.94,214.85,7.75]
[1758725339660,3.9,214.95,214.85,7.75]
[1758725339862,4.1857,214.93,214.85,7.75]
[1758725340451,3.33530036,214.91,214.77,14.05499874]
[1758725340657,87.52,214.9,214.77,7.76]
[1758725341052,4.1864,214.89,214.77,11.9485]
[1758725341257,46.22,214.88,214.77,11.9485]
[1758725341455,46.22,214.88,214.74,3.33530036]
[1758725341456,87.4,214.92,214.81,7.76]
[1758725341656,3.9,214.96,214.83,3.33530036]
[1758725341951,3.9,214.96,214.84,7.76]
[1758725341952,106.2,214.95,214.84,7.76]
[1758725342154,3.9,214.94,214.84,7.76]
[1758725342361,3.9,214.93,214.8,11.09530036]
[1758725342858,68.44270036,214.94,214.8,7.76]
[1758725343064,3.9,214.93,214.8,7.76]
[1758725343465,4.1863,214.9,214.8,7.76]
[1758725344064,3.9,214.91,214.8,7.76]
[1758725344364,64.52,214.9,214.8,7.76]
[1758725344564,3.9,214.91,214.8,7.76]
[1758725344755,33.06,214.91,214.8,7.76]
[1758725345065,33.06,214.91,214.81,4.1879]
[1758725345362,60.64,214.9,214.81,4.1879]
[1758725345565,91.04,214.91,214.81,4.1879]
[1758725345763,115.62,214.93,214.84,7.76]
[1758725346660,118.95530036,214.93,214.77,7.76]
[1758725346962,8.0865,214.89,214.77,11.09530036]
[1758725347266,3.33530036,214.94,214.78,7.76]
[1758725347460,3.9,214.92,214.78,7.76]
[1758725348566,4.1863,214.9,214.78,7.76]
[1758725348758,3.9,214.92,214.78,7.76]
[1758725348961,3.9,214.92,214.79,4.1881]
[1758725349468,3.9,214.92,214.82,7.76]
[1758725349663,41.5,214.92,214.82,7.76]
[1758725350963,41.5,214.92,214.83,3.33530036]
[1758725351162,41.5,214.92,214.82,11.9475]
[1758725351362,41.5,214.92,214.83,3.33530036]
[1758725353067,45.6858,214.92,214.83,3.33530036]
[1758725353263,3.9,214.92,214.83,3.33530036]
[1758725354966,3.9,214.92,214.82,7.76]
[1758725355765,4.186,214.91,214.82,7.76]
[1758725356464,3.9,214.92,214.82,7.76]
[1758725357268,3.9,214.92,214.81,3.33530036]
[1758725357269,3.9,214.99,214.87,3.33530036]
[1758725357466,123.18,214.99,214.88,7.76]
[1758725358368,123.18,214.99,214.88,11.9464]
[1758725358571,3.9,214.99,214.9,3.33530036]
[1758725358968,3.9,214.99,214.9,7.52130036]
[1758725359165,3.9,215.03,214.91,7.76]
[1758725359468,119.24,215.02,214.91,7.76]
[1758725359969,8.0838,215.03,214.92,4.1856]
[1758725360270,8.0838,215.03,214.93,3.33530036]
[1758725360271,3.9,215.03,214.93,3.33530036]
[1758725360472,3.9,215.03,214.94,4.1853]
[1758725360671,3.9,215.03,214.93,3.33530036]
[1758725360862,0.80981081,215.05,214.93,3.33530036]
[1758725360863,0.80981081,215.05,214.96,3.33530036]
[1758725361174,9.12194791,215.1,214.97,7.76]
[1758725361175,4.70959416,215.1,214.97,7.76]
[1758725361369,4.70959416,215.1,214.99,3.33530036]
[1758725361575,4.70959416,215.1,214.97,7.76]
[1758725361776,4.70959416,215.1,214.99,3.33530036]
[1758725362270,4.70959416,215.1,214.97,11.09530036]
[1758725362472,4.70959416,215.1,214.97,7.76]
[1758725362677,4.70959416,215.1,214.97,11.09530036]
[1758725363068,4.70959416,215.1,214.97,7.76]
[1758725363269,4.70959416,215.1,214.97,11.09530036]
[1758725363468,124.00959416,215.1,214.97,11.09530036]
[1758725363975,4.183,215.07,214.97,11.09530036]
[1758725364168,4.183,215.07,214.98,3.33530036]
[1758725365568,4.183,215.07,214.97,7.76]
[1758725365771,4.183,215.07,214.97,11.09530036]
[1758725365972,119.2,215.09,214.97,11.09530036]
[1758725366168,119.2,215.09,214.97,7.76]
[1758725366368,119.2,215.09,214.98,3.33530036]
[1758725366574,4.1828,215.08,214.98,3.33530036]
[1758725366873,3.89,215.08,214.98,3.33530036]
[1758725367576,4.183,215.06,214.97,7.76]
[1758725369879,3.89,215.07,214.97,7.76]
[1758725370177,119.02,215.06,214.97,7.76]
[1758725370771,127.073,215.07,214.97,7.76]
[1758725371276,122.89,215.07,214.97,7.76]
[1758725372180,4.1835,215.04,214.97,7.76]
[1758725372570,4.1835,215.04,214.89,71.67738407]
[1758725372771,3.89,215.03,214.95,3.33530036]
[1758725373280,4.184,215.02,214.95,3.33530036]
[1758725374070,3.89,215.01,214.89,7.98738407]
[1758725374281,3.89,215.01,214.91,3.33530036]
[1758725374477,65.0831,215.02,214.89,3.97268443]
[1758725374781,3.89,214.99,214.89,3.97268443]
[1758725375084,4.1853,214.95,214.89,3.97268443]
[1758725375277,122.77,214.99,214.89,3.97268443]
[1758725375474,122.77,214.99,214.9,7.35]
[1758725375674,3.89,215.05,214.92,3.33530036]
[1758725375875,3.89,215.05,214.93,7.35]
[1758725376681,4.184,215.02,214.93,7.35]
[1758725376883,122.79,215.05,214.96,7.35]
[1758725377378,126.9734,215.05,214.96,7.35]
[1758725377585,8.0734,215.05,214.96,7.35]
[1758725377880,3.89,215.05,214.98,3.33530036]
[1758725378480,87.74,215.08,214.99,7.35]
[1758725378985,91.9228,215.08,214.99,7.35]
[1758725379282,4.1828,215.08,214.99,7.35]
[1758725379784,4.1828,215.08,214.99,21.29994976]
[1758725380788,3.89,215.09,214.99,21.29994976]
[1758725381385,4.183,215.07,214.99,21.29994976]
[1758725382287,8.0725,215.09,215.0,7.35]
[1758725383086,123.37952824,215.13,215.02,7.35]
[1758725383276,184.54022824,215.13,215.02,7.35]
[1758725383476,8.0728,215.08,214.97,7.35]
[1758725383687,8.0728,215.08,214.97,10.68530036]
[1758725383888,8.0728,215.08,214.97,3.33530036]
[1758725384087,4.183,215.07,214.98,7.35]
[1758725384786,3.89,215.08,214.98,7.35]
[1758725385384,3.89,215.08,215.0,3.33530036]
[1758725385585,84.89,215.12,215.01,7.35]
[1758725386088,84.89,215.12,215.04,7.35]
[1758725387689,81.0,215.12,214.98,21.56501813]
[1758725387989,3.89,215.11,214.98,24.90031849]
[1758725388387,3.89,215.08,214.98,24.90031849]
[1758725389989,3.89,215.08,215.0,4.1842]
[1758725390194,0.80946234,215.12,215.01,7.35]
[1758725390687,0.80946234,215.12,215.01,11.5338]
[1758725390893,0.80946234,215.12,215.01,14.86910036]
[1758725391095,3.89,215.13,215.02,7.35]
[1758725392292,4.182,215.12,215.02,7.35]
[1758725392489,3.89,215.13,215.02,7.35]
[1758725392788,4.182,215.12,215.02,7.35]
[1758725393995,3.89,215.13,215.02,7.35]
[1758725394393,4.182,215.12,215.02,7.35]
[1758725394788,3.89,215.13,214.98,14.21501813]
[1758725394789,3.89,215.13,215.04,7.47]
[1758725395094,0.80941527,215.15,215.04,7.47]
[1758725395695,0.80941527,215.15,215.04,11.6534]
[1758725395996,0.80941527,215.15,215.05,7.47]
[1758725396191,4.99071527,215.15,215.05,7.47]
[1758725396388,127.26071527,215.15,215.05,7.47]
[1758725396694,3.91,215.18,215.06,4.1829]
[1758725396887,3.91,215.18,215.09,7.47]
[1758725398294,3.33530036,215.18,215.0,7.47]
[1758725398488,3.33530036,215.18,215.03,10.80530036]
[1758725398489,3.91,215.17,215.03,10.80530036]
[1758725398690,3.91,215.17,215.04,7.47]
[1758725398890,3.33530036,215.18,215.04,7.47]
[1758725398891,87.14,215.16,215.04,7.47]
[1758725399199,8.0913,215.15,215.04,7.47]
[1758725399892,3.91,215.15,215.04,7.47]
[1758725400294,122.53,215.15,215.04,7.47]
[1758725400497,3.91,215.15,215.04,7.47]
[1758725400693,3.91,215.15,214.99,65.0903]
[1758725400694,3.91,215.15,215.08,2.13013865]
[1758725400997,122.48,215.18,215.09,7.75]
[1758725401195,2.13013865,215.15,215.06,2.13013865]
[1758725401797,2.13013865,215.15,215.05,7.75]
[1758725401994,2.13013865,215.15,215.06,2.13013865]
[1758725403199,3.9,215.14,215.05,7.75]
[1758725403396,2.13013865,215.13,215.05,7.75]
[1758725403802,2.13013865,215.11,215.02,2.13013865]
[1758725403989,6.03013865,215.11,215.02,2.13013865]
[1758725404194,2.13013865,215.15,215.06,2.13013865]
[1758725404396,3.9,215.14,215.05,2.13013865]
[1758725404692,122.62,215.14,215.03,7.75]
[1758725404889,122.62,215.14,215.05,2.13013865]
[1758725405090,3.9,215.14,215.07,2.13013865]
[1758725406799,3.9,215.15,215.07,2.13013865]
[1758725407502,3.9,215.15,215.06,7.75]
[1758725407803,3.9,215.15,215.07,2.13013865]
[1758725408301,3.9,215.15,215.06,9.88013865]
[1758725409503,3.9,215.15,215.06,7.75]
[1758725409807,2.13013865,215.12,215.06,7.75]
[1758725412101,1.13013865,215.12,215.06,7.75]
[1758725412597,82.61013865,215.14,215.06,7.75]
[1758725413199,2.13013865,215.14,215.06,7.75]
[1758725413399,120.57013865,215.14,215.06,7.75]
[1758725414303,6.03013865,215.15,215.06,7.75]
[1758725414602,2.13013865,215.14,215.06,7.75]
[1758725415002,124.41013865,215.15,215.06,7.75]
[1758725415203,124.43013865,215.15,215.06,9.88013865]
[1758725415603,122.3,215.15,215.06,9.88013865]
[1758725415904,3.9,215.15,215.06,9.88013865]
[1758725416508,3.9,215.15,215.06,14.06303865]
[1758725417303,3.9,215.15,215.07,2.13013865]
[1758725417506,3.9,215.15,215.06,7.75]
[1758725417707,3.9,215.15,215.07,2.13013865]
[1758725417902,3.9,215.15,215.06,7.75]
[1758725418102,2.13013865,215.17,215.07,2.13013865]
[1758725418408,2.13013865,215.17,215.04,2.13013865]
[1758725418409,2.13013865,215.13,215.04,2.13013865]
[1758725418804,2.13013865,215.13,215.05,7.75]
[1758725419303,3.9,215.14,215.05,7.75]
[1758725420111,3.9,215.14,215.05,9.88013865]
[1758725420911,3.9,215.14,215.06,2.13013865]
[1758725421406,120.37013865,215.16,215.07,7.75]
[1758725421613,3.9,215.15,215.07,7.75]
[1758725422016,4.1818,215.13,215.07,7.75]
[1758725422214,6.03013865,215.13,215.02,7.75]
[1758725422409,6.03013865,215.13,215.04,2.13013865]
[1758725422616,6.03013865,215.13,215.05,7.75]
[1758725423410,4.1824,215.1,215.05,7.75]
[1758725423611,6.03013865,215.13,215.05,7.75]
[1758725423809,122.12,215.13,215.05,7.75]
[1758725424214,3.9,215.13,215.05,7.75]
[1758725424613,4.1819,215.12,215.05,7.75]
[1758725424808,3.9,215.13,215.05,7.75]
[1758725425814,2.13013865,215.16,215.07,2.13013865]
[1758725426116,2.13013865,215.16,215.08,7.86]
[1758725426316,6.03013865,215.17,215.08,7.86]
[1758725426716,3.9,215.17,215.08,7.86]
[1758725426914,6.03013865,215.17,215.08,7.86]
[1758725427315,10.21113865,215.17,215.08,7.86]
[1758725427817,3.9,215.17,215.08,7.86]
[1758725428020,8.081,215.17,215.08,7.86]
[1758725428209,3.9,215.17,215.08,7.86]
[1758725428409,2.13013865,215.16,215.08,7.86]
[1758725428620,4.1814,215.15,215.08,7.86]
[1758725428814,2.13013865,215.16,215.08,7.86]
[1758725429416,10.21103865,215.17,215.08,7.86]
[1758725429610,6.03013865,215.17,215.08,7.86]
[1758725430520,8.0809,215.17,215.08,7.86]
[1758725430714,10.21103865,215.17,215.08,7.86]
[1758725430914,6.03013865,215.17,215.08,7.86]
[1758725431110,6.03013865,215.17,215.08,9.99013865]
[1758725431111,3.9,215.17,215.08,9.99013865]
[1758725431422,3.9,215.17,215.09,7.86]
[1758725432515,3.9,215.24,215.14,2.13013865]
[1758725432716,3.9,215.24,215.14,7.86]
[1758725432915,6.03013865,215.24,215.14,7.86]
[1758725433112,3.9,215.2,215.11,7.86]
[1758725433512,3.9,215.2,215.11,9.99013865]
[1758725433921,3.9,215.2,215.11,7.86]
[1758725434121,2.13013865,215.21,215.12,7.86]
[1758725434320,2.13013865,215.21,215.12,9.99013865]
[1758725434714,2.13013865,215.21,215.13,7.86]
[1758725434915,2.13013865,215.21,215.13,9.99013865]
[1758725435316,49.29013865,215.22,215.13,9.99013865]
[1758725435719,49.29013865,215.22,215.13,7.86]
[1758725437730,2.13013865,215.19,215.13,7.86]
[1758725438225,2.13013865,215.2,215.13,7.86]
[1758725438425,6.03013865,215.21,215.14,3.98017133]
[1758725438620,6.03013865,215.21,215.15,3.98017133]
[1758725438823,3.9,215.17,215.16,3.98017133]
[1758725440929,4.1802,215.21,215.16,3.98017133]
[1758725440930,117.8,215.21,215.16,3.98017133]
[1758725441136,3.9,215.19,215.17,3.98017133]
[1758725441328,3.9,215.19,215.18,3.98017133]
[1758725441835,6.03013865,215.19,215.18,3.98017133]
[1758725442035,10.21073865,215.19,215.18,3.98017133]
[1758725442433,10.67073865,215.19,215.18,3.98017133]
[1758725442935,4.36,215.19,215.18,3.98017133]
[1758725443139,4.36,215.19,215.18,3.33495436]
[1758725443140,6.49013865,215.19,215.18,3.33495436]
[1758725443433,3.9,215.18,215.08,7.86]
[1758725443639,6.03013865,215.18,215.08,7.86]
[1758725443828,6.03013865,215.18,215.08,9.99013865]
[1758725444231,123.83013865,215.18,215.08,9.99013865]
[1758725444435,123.83013865,215.18,215.08,7.86]
[1758725444642,4.1811,215.16,215.08,7.86]
[1758725445135,8.0815,215.15,215.08,7.86]
[1758725445436,3.9,215.15,215.08,7.86]
[1758725445940,2.13013865,215.17,215.08,7.86]
[1758725446135,119.93013865,215.18,215.08,7.86]
[1758725446736,3.9,215.17,215.08,7.86]
[1758725446936,4.1812,215.16,215.08,7.86]
[1758725447140,2.13013865,215.16,215.08,7.86]
[1758725447534,3.9,215.17,215.08,7.86]
[1758725447742,2.13013865,215.16,215.08,7.86]
[1758725448243,6.31123865,215.16,215.08,7.86]
[1758725448433,3.9,215.17,215.08,7.86]
[1758725448633,6.03013865,215.16,215.08,7.86]
[1758725449638,2.13013865,215.18,215.08,9.99013865]
[1758725449842,61.73013865,215.18,215.09,7.86]
[1758725450938,65.91093865,215.18,215.09,7.86]
[1758725451544,6.03013865,215.17,215.09,7.86]
[1758725452644,4.1811,215.16,215.09,7.86]
[1758725452840,2.13013865,215.17,215.06,2.13013865]
[1758725453045,59.6,215.18,215.04,7.86]
[1758725453046,3.9,215.13,215.04,7.86]
[1758725453950,43.56,215.13,215.04,7.86]
[1758725455146,5.22194791,215.21,215.05,2.13013865]
[1758725455453,6.03013865,215.17,215.06,7.71]
[1758725455645,6.03013865,215.17,215.07,4.1828]
[1758725455849,6.03013865,215.17,215.08,7.71]
[1758725456247,6.03013865,215.17,215.09,4.1824]
[1758725456549,2.13013865,215.21,215.12,7.71]
[1758725457847,10.28,215.24,215.12,7.71]
[1758725458056,10.28,215.24,215.11,4.182]
[1758725458057,3.9,215.25,215.14,7.71]
[1758725458254,2.13013865,215.24,215.14,7.71]
[1758725459147,82.3,215.25,215.16,2.13013865]
[1758725460651,82.3,215.25,215.14,7.71]
[1758725460652,121.74,215.25,215.14,11.03590779]
[1758725460953,121.74,215.25,215.14,7.71]
[1758725461148,121.74,215.25,215.14,11.03590779]
[1758725461649,121.74,215.25,215.14,3.32590779]
[1758725461650,3.9,215.25,215.14,3.32590779]
[1758725461853,77.52,215.25,215.15,7.84]
[1758725463050,77.52,215.25,215.15,12.0212]
[1758725463450,77.52,215.25,215.16,3.32590779]
[1758725463651,77.52,215.25,215.15,7.84]
[1758725463855,77.52,215.25,215.16,3.32590779]
[1758725464844,0.80901071,215.26,215.17,7.84]
[1758725465050,3.89,215.29,215.2,7.84]
[1758725465251,3.89,215.29,215.21,3.32590779]
[1758725465453,3.89,215.29,215.2,7.84]
[1758725466056,3.89,215.28,215.2,7.84]
[1758725466352,117.74,215.29,215.18,3.32590779]
[1758725466353,3.89,215.29,215.18,3.32590779]
[1758725466654,4.69886027,215.29,215.18,3.32590779]
[1758725467047,4.1788,215.28,215.18,3.32590779]
[1758725467251,3.89,215.27,215.18,3.32590779]
[1758725467447,3.89,215.27,215.19,7.84]
[1758725472857,0.80882267,215.32,215.2,65.0278]
[1758725473066,13.42390449,215.34,215.26,7.84]
[1758725473255,17.31390449,215.34,215.26,7.84]
[1758725473462,4.1778,215.33,215.26,7.84]
[1758725473755,17.31390449,215.34,215.23,7.84]
[1758725473960,17.31390449,215.34,215.24,3.32590779]
[1758725474160,17.31390449,215.34,215.23,11.16590779]
[1758725474357,135.17390449,215.34,215.26,3.32590779]
[1758725474663,135.17390449,215.34,215.23,7.84]
[1758725474865,17.31390449,215.34,215.25,3.32590779]
[1758725475063,17.31390449,215.34,215.2,65.0264]
[1758725475064,17.31390449,215.34,215.27,3.32590779]
[1758725475266,13.42390449,215.34,215.3,3.32590779]
[1758725475465,13.42390449,215.34,215.32,7.84]
[1758725475668,13.42390449,215.34,215.33,11.16590779]
[1758725475856,12.79532016,215.34,215.33,15.80370779]
[1758725476064,338.36,215.44,215.34,7.84]
[1758725476261,338.36,215.44,215.36,7.84]
[1758725476462,338.36,215.44,215.36,11.16590779]
[1758725476862,338.36,215.44,215.36,7.84]
[1758725477062,338.36,215.44,215.37,3.32590779]
[1758725477463,338.36,215.44,215.36,7.84]
[1758725478662,456.4,215.44,215.36,7.84]
[1758725478965,338.36,215.44,215.36,7.84]
[1758725479169,456.4,215.44,215.36,7.84]
[1758725479569,7.47,215.43,215.31,11.16590779]
[1758725479757,7.47,215.43,215.31,7.84]
[1758725479962,4.1761,215.42,215.31,12.018]
[1758725480262,4.1761,215.42,215.31,7.84]
[1758725480464,7.47,215.41,215.31,7.84]
[1758725480671,11.6464,215.41,215.31,7.84]
[1758725480973,7.47,215.39,215.24,7.84]
[1758725481271,95.58,215.38,215.23,0.67491351]
[1758725481468,117.96,215.37,215.28,3.32590779]
[1758725481663,7.47,215.39,215.3,4.1783]
[1758725481858,7.47,215.39,215.29,7.84]
[1758725482266,7.47,215.39,215.29,12.0184]
[1758725482464,7.47,215.39,215.29,7.84]
[1758725483670,117.9,215.41,215.29,7.84]
[1758725484465,11.646,215.42,215.31,4.178]
[1758725484672,11.646,215.42,215.29,7.84]
[1758725484974,117.86,215.41,215.29,7.84]
[1758725485363,10.79590779,215.42,215.29,7.84]
[1758725485364,7.47,215.42,215.31,7.34]
[1758725485569,7.47,215.42,215.32,68.31660779]
[1758725485871,338.36,215.44,215.33,7.34]
[1758725486079,338.36,215.44,215.36,11.517]
[1758725486769,7.81,215.47,215.36,10.66590779]
[1758725487273,0.80811834,215.51,215.42,10.66590779]
[1758725487468,117.86,215.53,215.42,7.34]
[1758725487669,117.86,215.53,215.44,4.1755]
[1758725488062,117.86,215.53,215.42,7.34]
[1758725488464,117.86,215.53,215.44,4.1755]
[1758725488669,117.86,215.53,215.42,7.34]
[1758725488970,7.81,215.52,215.42,7.34]
[1758725489473,7.81,215.52,215.43,4.1757]
[1758725489667,7.81,215.52,215.42,7.34]
[1758725489866,7.81,215.52,215.42,10.66590779]
[1758725490268,7.81,215.51,215.38,10.66590779]
[1758725490767,4.98152452,215.56,215.43,4.1758]
[1758725490966,125.63,215.55,215.43,4.1758]
[1758725491170,125.63,215.55,215.44,3.32590779]
[1758725491570,7.81,215.53,215.42,10.66590779]
[1758725492768,7.81,215.53,215.42,14.84190779]
[1758725493281,7.81,215.53,215.44,4.1756]
[1758725493475,7.81,215.53,215.42,10.66590779]
[1758725493476,7.81,215.53,215.43,7.34]
[1758725493677,117.78,215.56,215.46,7.34]
[1758725494176,456.0,215.57,215.46,7.34]
[1758725494383,7.81,215.56,215.46,7.34]
[1758725494575,7.81,215.56,215.41,64.9636]
[1758725494576,7.81,215.56,215.49,7.34]
[1758725495081,7.81,215.6,215.49,7.34]
[1758725495378,3.32590779,215.63,215.49,11.5146]
[1758725495578,64.8546,215.78,215.53,64.9264]
[1758725495878,7.81,215.76,215.62,7.34]
[1758725496081,7.81,215.76,215.62,10.66590779]